Cogmind - Beta 10.1 @@@ ROGUE MODE // 2020.09.27 @ 22:14:43 Player: Tmvn Result: Destroyed by S-10 Pest with Light Assault Rifle Performance ------------- Evolutions (1) 500 Regions Visited (2) 400 Robots Destroyed (21) 105 Value Destroyed (477) 477 Prototype IDs (0) 0 Alien Tech Used (0) 0 Bonus (0) 0 TOTAL SCORE: 1482 Bonus ------- None Cogmind --------- Core Integrity 0/400 Matter 300/300 Energy 250/250 System Corruption 0% Temperature Cool (0) Movement Rolling (120) Ox2 Location -9/Materials Parts ------- > --- POWER (1) -------- Ion Engine > --- PROPULSION (2) --- Compact Wheel > --- UTILITY (3) ------ Large Storage Unit Large Storage Unit > --- WEAPON (3) ------- (None) > --- INVENTORY (16) --- Light Ion Engine Heat Sink Small Storage Unit Sensor Array Advanced Sensor Array Signal Interpreter Targeting Computer Light Armor Plating Light Armor Plating Hacking Suite Peak State ------------ > --- POWER ------------ Ion Engine > --- PROPULSION ------- Wheel Wheel > --- UTILITY ---------- Large Storage Unit Large Storage Unit Advanced Sensor Array > --- WEAPON ----------- Beam Rifle Heavy Assault Rifle Heavy Assault Rifle > --- INVENTORY -------- Ion Engine Compact Wheel Heat Sink Small Storage Unit Sensor Array Advanced Sensor Array Signal Interpreter Targeting Computer Light Armor Plating Light Armor Plating Hacking Suite Ion Cannon [Rating: 15] Favorites ----------- Power Ion Engine Engine Ion Engine Propulsion Wheel Leg Aluminum Leg Wheel Wheel Flight Unit Flight Unit Utility Large Storage Unit Device Sensor Array Storage Large Storage Unit Processor Targeting Computer Weapon Assault Rifle Energy Gun Small Laser Energy Cannon Ion Cannon Ballistic Gun Assault Rifle Build | -11 -10 -9 ------- Run | Scr Mat Mat Slots Evolved 2 | . . 2 Power . | . . . Propulsion . | . . . Utility 1 | . . 1 Weapon 1 | . . 1 Parts Attached 26 | 3 9 14 Power 4 | . 2 2 Engine 4 | . 2 2 Core . | . . . Reactor . | . . . Propulsion 7 | 2 2 3 Treads . | . . . Leg . | . . . Wheel 6 | 2 2 2 Hover . | . . . Flight 1 | . . 1 Utility 5 | . 3 2 Device 2 | . . 2 Storage 2 | . 2 . Processor 1 | . 1 . Hackware . | . . . Protection . | . . . Artifact . | . . . Weapon 10 | 1 2 7 Energy Gun 4 | . 1 3 Energy Cannon 1 | . . 1 Ballistic Gun 5 | 1 1 3 Ballistic Cannon . | . . . Launcher . | . . . Special Weapon . | . . . Impact Weapon . | . . . Slashing Weapon . | . . . Piercing Weapon . | . . . Special Melee Weapon . | . . . Unidentified Prototypes . | . . . Parts Lost 17 | . 1 16 Power 2 | . . 2 Propulsion 4 | . . 4 Utility 1 | . . 1 Weapon 10 | . 1 9 Highest Loss Streak 10 | . 1 10 Average Slot Usage (%) 86 | . 91 80 Engine 11 | . 14 9 Wheel 22 | . 28 17 Device 5 | . . 11 Storage 18 | . 15 22 Processor 2 | . 4 . Energy Gun 6 | . . 12 Ballistic Gun 16 | . 27 6 Naked Turns . | . . . Heaviest Build 47 | 13 41 47 Greatest Support 26 | 26 26 20 Greatest Overweight (x) 14 | . 2 14 Average Overweight (x) . | . . 1 Largest Inventory Capacity 16 | 6 16 16 Average Capacity 11 | 6 7 16 Most Carried 13 | 6 9 13 Average Carried 7 | 4 5 9 Final Capacity 16 | 6 16 16 Final Carried 10 | 4 9 10 Class Distribution -------------------- 49% | Mutant 31% | Scavenger-Mutant 19% | Scavenger-Skirmisher Dominant Class ---------------- Mutant | -10/Materials Scavenger-Mutant | -9/Materials Resources | -11 -10 -9 ----------- Run | Scr Mat Mat Matter Collected 686 | 200 359 127 Remotely . | . . . Salvage Created 635 | . 383 252 Parts 42 | . 29 13 Haulers Intercepted . | . . . Recyclers Shooed . | . . . Parts Field Recycled . | . . . Retrieved Matter . | . . . Parts Self-Destructed . | . . . Prevented . | . . . Kills | -11 -10 -9 ------- Run | Scr Mat Mat Combat Hostiles Destroyed 15 | . 8 7 Guns 12 | . 8 4 Cannons 3 | . . 3 Classes Destroyed 7 | . 5 2 Worker 3 | . 3 . Tunneler 1 | . 1 . Watcher 2 | . 2 . Swarmer 6 | . 3 3 Grunt 5 | . 5 . Duelist 1 | . . 1 Sentry 3 | . . 3 Best Kill Streak 6 | . 6 4 Combat Bots Only 4 | . 2 4 Max Kills in Single Turn 1 | . 1 1 Gunslinging . | . . . Exploded . | . . . Melee . | . . . Uniques/NPCs Destroyed . | . . . Combat | -11 -10 -9 -------- Run | Scr Mat Mat Damage Taken 1845 | . 502 1343 Core 569 | . 162 407 Absorbed by Shields . | . . . Core Remaining (%) 67 | 100 35 . Volleys Fired 72 | . 39 33 Largest 3 | . 2 3 Hottest 144 | . 85 144 Shots Fired 130 | . 76 54 Gun 120 | . 76 44 Cannon 10 | . . 10 Launcher . | . . . Special . | . . . Kinetic 96 | . 75 21 Thermal 34 | . 1 33 Explosive . | . . . Electromagnetic . | . . . Robot Hit Streak 12 | . 12 11 Robot Miss Streak 3 | . 2 3 Penetration Max . | . . . Secondary Targets 1 | . . 1 Max Gunslinging Chain 1 | . . 1 Shots Hit Robots 92 | . 52 40 Core Hits 35 | . 22 13 Critical Hits 2 | . 2 . Critical Kills . | . . . Critical Parts Destroyed 2 | . 2 . Melee Attacks . | . . . Impact . | . . . Slashing . | . . . Piercing . | . . . Sneak Attacks . | . . . Combat Hostiles . | . . . Follow-up Attacks . | . . . Damage Inflicted 1243 | . 588 655 Guns 1040 | . 588 452 Cannons 186 | . . 186 Explosions . | . . . Melee . | . . . Ramming 17 | . . 17 Kinetic 735 | . 573 162 Thermal 491 | . 15 476 Explosive . | . . . Electromagnetic . | . . . Impact . | . . . Slashing . | . . . Piercing . | . . . Highest Corruption . | . . . Average Corruption . | . . . Corruption Purged . | . . . Overload Shots . | . . . Overflow Damage 4 | . . 4 Projectiles 4 | . . 4 Explosions . | . . . Melee . | . . . Knockbacks . | . . . Impact . | . . . Kinetic . | . . . Secondary . | . . . Self-Inflicted Damage 8 | . . 8 Shots . | . . . Rammed 3 | . . 3 Targets Rammed 3 | . . 3 Kicked . | . . . Crushed . | . . . Highest Temperature 291 | . 50 291 Average Temperature 77 | . 8 92 Received Heat Transfer 576 | . 222 354 Siege Activations . | . . . Robots Corrupted . | . . . Combat Hostiles . | . . . Parts Fried . | . . . Impact Corruptions . | . . . Robots Melted . | . . . Combat Hostiles . | . . . Parts Melted 4 | . . 4 Heat Transferred 1012 | . 37 975 Parts Sabotaged . | . . . Parts Stolen . | . . . Parts Stripped . | . . . Power Chain Reactions . | . . . Missiles Intercepted . | . . . Alert | -11 -10 -9 ------- Run | Scr Mat Mat Peak Influence 293 | . 293 236 Initial 51 | . . 51 Average 116 | . 103 131 Maximum Alert Level 1 | . 1 1 Low Security (%) 82 | 100 80 84 Level 1 17 | . 19 15 Level 2 . | . . . Level 3 . | . . . Level 4 . | . . . Level 5 . | . . . High Security . | . . . Max Security . | . . . Squads Dispatched 4 | . 1 3 Investigation 1 | . . 1 Extermination . | . . . Reinforcement 3 | . 1 2 Assault . | . . . Garrison . | . . . Intercept . | . . . Construction Impeded . | . . . Haulers Reinforced . | . . . Stealth | -11 -10 -9 --------- Run | Scr Mat Mat Distress Signals 1 | . . 1 Communications Jammed . | . . . Distress Signals . | . . . Times Spotted 36 | . 17 19 Peak Tracking Total 7 | . 4 7 Tactical Retreats 4 | . 2 2 Traps | -11 -10 -9 ------- Run | Scr Mat Mat Traps Triggered 1 | . . 1 Indirectly . | . . . Trap Hack Attempts . | . . . Triggered . | . . . Disarmed . | . . . Reprogrammed . | . . . Reused . | . . . Traps Extracted . | . . . Installed . | . . . Triggered . | . . . Machines | -11 -10 -9 ---------- Run | Scr Mat Mat Machines Disabled 1 | . . 1 Max in Single Turn 1 | . . 1 Machines Sabotaged . | . . . Garrisons Compromised . | . . . Overloaded Fab Kills . | . . . Fab Network Shutdowns . | . . . Hacking | -11 -10 -9 --------- Run | Scr Mat Mat Machines Accessed 2 | . 2 . Terminals 2 | . 2 . Fabricators . | . . . Repair Stations . | . . . Recycling Units . | . . . Scanalyzers . | . . . Garrison Access . | . . . Total Hacks 4 | . 4 . Successful 3 | . 3 . Failed 1 | . 1 . Catastrophic . | . . . Database Lockouts . | . . . Manual . | . . . Terminals 4 | . 4 . Fabricators . | . . . Repair Stations . | . . . Recycling Units . | . . . Scanalyzers . | . . . Garrison Access . | . . . Terminal Hacks 3 | . 3 . Alert Level 1 | . 1 . Dispatch Records 2 | . 2 . Fabricator Hacks . | . . . Repair Station Hacks . | . . . Recycling Unit Hacks . | . . . Scanalyzer . | . . . Garrison Access Hacks . | . . . Unauthorized Hacks . | . . . Terminals . | . . . Fabricators . | . . . Repair Stations . | . . . Recycling Units . | . . . Scanalyzers . | . . . Garrison Access . | . . . Data Cores Recovered . | . . . Used . | . . . Hacking Detections . | . . . Full Trace Events . | . . . Feedback Events . | . . . Feedback Blocked . | . . . Robot Schematics Acquired . | . . . Robots Built . | . . . Matter . | . . . Time . | . . . Total Robot Build Rating . | . . . Part Schematics Acquired . | . . . Parts Built . | . . . Matter . | . . . Time . | . . . Total Part Build Rating . | . . . Parts Repaired . | . . . Time . | . . . Parts Recycled . | . . . Recycled Matter . | . . . Retrieved Matter . | . . . Retrieved Components . | . . . Parts Scanalyzed . | . . . Part Schematics Acquired . | . . . Parts Damaged . | . . . Bothacking | -11 -10 -9 ------------ Run | Scr Mat Mat Used RIF Installer . | . . . Robots Hacked . | . . . Non-combat . | . . . Combat . | . . . Robot Hacks Applied . | . . . Relay Couplers Released . | . . . Robots Rewired . | . . . Allies Hacked . | . . . Hacks Repelled . | . . . Allies | -11 -10 -9 -------- Run | Scr Mat Mat Total Allies . | . . . Largest Group . | . . . Highest-Rated Group . | . . . Highest-Rated Ally . | . . . Total Orders . | . . . Ally Attacks . | . . . Total Damage . | . . . Kills . | . . . Allies Corrupted . | . . . Allies Melted . | . . . Intel | -11 -10 -9 ------- Run | Scr Mat Mat Robot Analysis Total . | . . . Derelict Logs Recovered . | . . . Drone Launches . | . . . Drone Recoveries . | . . . Exploration | -11 -10 -9 ------------- Run | Scr Mat Mat Turns Passed 856 | 6 429 421 Spaces Moved 611 | 1 325 285 Core 4 | . . 4 Treads . | . . . Legs . | . . . Wheels 606 | 1 325 280 Hover . | . . . Flight 1 | . . 1 Fastest Speed 80 | 90 80 90 Average Speed 97 | 90 88 108 Slowest Speed 840 | 90 100 840 Overloaded Moves . | . . . Propulsion Burnouts . | . . . Robots Hopped . | . . . Cave-ins Triggered . | . . . Exploration Rate (%) 29 | 2 51 35 Regions Visited 2 Branch Regions . Pre-discovered Areas . | . . . Known Exits Taken . | . . . Unknown Exits Taken 2 | 1 1 . Scrap Searched . | . . . Spaces Dug . | . . . Terrain Destroyed 1 | . . 1 Melee . | . . . Projectile 1 | . . 1 AOE . | . . . Terrain Rammed . | . . . Walls Destroyed . | . . . Machines Disabled . | . . . Actions | -11 -10 -9 --------- Run | Scr Mat Mat Total 753 | 8 399 346 Wait 4 | . . 4 Move 609 | . 324 285 Hop . | . . . Pick Up 20 | . 13 7 Fast Attach 8 | . 2 6 Attach 12 | 3 2 7 Detach 5 | 3 2 . Swap 6 | . 5 1 Drop 14 | 2 12 . Fire 72 | . 39 33 Melee . | . . . Ram 3 | . . 3 Kick . | . . . Crush . | . . . Escape Stasis . | . . . Rewire . | . . . Trap . | . . . Miscellaneous . | . . . Route ------- -11/Scrapyard -10/Materials -9/Materials History --------- Turn | Location | Event 7 | -11/Scrapyard | Discovered new exit (range 0) 7 | -11/Scrapyard | Entered Materials 265 | -10/Materials | Core integrity fell below 50% 429 | -10/Materials | Discovered new exit (range 5) 436 | -10/Materials | Entered another Materials area 436 | -9/Materials | Evolved 2 slots: Utility x1, Weapon x1 704 | -9/Materials | Lost 3 parts (1p1n1w) 767 | -9/Materials | Core integrity fell below 50% 826 | -9/Materials | Core integrity fell below 20% 857 | -9/Materials | Destroyed by S-10 Pest with Light Assault Rifle Last Messages --------------- 00779_ Acquired Flight Unit. 00780_ Material Compactor disabled. 00782_ Destroyed Flight Unit. 00788_ Lgt. Ion Engine melted. 00788_ S-10 Pest destroyed. 00789_ K-01 Serf collects debris. 00791_ Flight Unit destroyed. 00793_ Ion Cannon destroyed. 00794_ K-01 Serf collects debris. 00813_ Ion Engine destroyed. 00814_ K-01 Serf collects debris. 00818_ Acquired Lgt. Assault Rifle. 00821_ K-01 Serf collects debris. 00833_ Lgt. Assault Rifle destroyed. 00833_ Acquired 42 matter. 00834_ K-01 Serf collects debris. 00836_ Acquired Lgt. Ion Engine. 00855_ Slammed into S-10 Pest. 00855_ Adv. Sensor Array destroyed. 00856_ Slammed into S-10 Pest. Map ----- +----------------------------------------------------+ | | | | | | | | | | | | | | | | | | | | | | | | | | | | | | | ????????????????????????????????????????? | | ????????????????????????????????????????? | | ?????????????????######?????????????????? | | ????????????# ########??????????? | | ????????????# """ ## #??????????? | | ????????????# """"" + #??????????? | | ????????????# """"" ## ####??????????? | | ????????????# """"" ## =#?????????????? | | ????????????# ""= ##=%#?????????????? | | ????????????# % ##s*#?????????????? | | ????????????# !% %##s@##????????????? | | ????????######+#####+## s #????????????? | | ??????? ^ T %* #????????????? | | ????? T #????????????? | | ??????"" #### ### #????????????? | | ???????" ??????# #?######????????????? | | ???????"??????????# #???########????????? | | ??????????????????# #???#! ] ! #????????? | | ??????????????????# #???#!!]]! #????????? | | ??????????????????# #???# #????????? | | ??????????????????# #???## ###????????? | | ??????????????????# ###### #??????????? | | ??????????????????# % #??????????? | | ??????????????????#+###### #??????????? | | ??????????????????# ???## ##??????????? | | ??????????????????# ??# #???????????? | | ??????????????????#!!! ## #???????????? | | ??????????????????#!!! ## #???????????? | | ??????????????????#!!! ## #???????????? | | ????????????#+#???# ## #???????????? | | ????????????# #???######### #???????????? | | ????????????# #???????????# #???????????? | | ????????????# #???#########+#???????????? | | ????????????# #???# #???????????? | | ??????####### #???# """ """ #???????????? | +----------------------------------------------------+ Best States ------------- Heat Dissipation 28 Energy Generation 10 Energy Capacity 250 Matter Stores 300 Matter Capacity 300 Sight Range 16 Robot Scan Range 16 Terrain Scan Density 10 Evasion (%) 44 Targeting Accuracy 5 Item Schematics ----------------- None Robot Schematics ------------------ None Fabricated ------------ Nothing Alien Tech Used ----------------- None Achievements -------------- None Challenges ------------ None Game ------ Seed CoreHardlightRegenerator Manual? 0 Play Time 00:12:48 Cumulative 31.8 hours Start 2020.09.27 @ 22:03:11 End 2020.09.27 @ 22:14:43 Sessions 1 Manual Loads 0 Difficulty Rogue Special Mode None Game No. 62 Rogue 62 Adventurer 0 Explorer 0 Win Type - Total 0 Types 0/0/0/0/0/0/0/0/0 Lore% 23 Gallery% 37 Achievement% 26 Wizard Run 0 Options --------- ASCII 1 Keyboard 1 Movement Vi Keybinds 0 Fullscreen 2 Font 24/Terminus Map View 76x50 Tactical HUD 1 Map Filters SATURATION(70) Filters SATURATION(65)|SHIFT_HUE(14) Steam 1 RUN: fa8b4c55-cf9d-4756-a969-25fae8751b92